bitfinex/quotes_SOLUSD_20251125
["timestamp","ask_amount","ask_price","bid_price","bid_amount"]
[1764093599026,2.7942148,137.08,137.07,7.98535086]
[1764093599406,2.7942148,137.09,137.07,7.98535086]
[1764093599606,2.7942148,137.09,137.07,8.00535086]
[1764093600306,2.7942148,137.08,137.07,7.29535086]
[1764093600629,2.7942148,137.09,137.08,0.71]
[1764093600803,2.7942148,137.09,137.07,8.00535086]
[1764093601004,2.7942148,137.09,136.96,86.50573775]
[1764093601005,3.5042148,137.08,137.03,18.34297918]
[1764093601205,2.7942148,137.05,137.03,0.81]
[1764093601720,2.7942148,137.08,137.03,10.90188225]
[1764093601914,6.7442148,137.08,137.03,29.14606235]
[1764093602124,6.7442148,137.08,137.04,0.71]
[1764093602736,23.60339989,137.09,137.05,2.7942148]
[1764093602737,2.7942148,137.09,137.05,2.7942148]
[1764093602937,3.5042148,137.09,137.04,3.5042148]
[1764093603135,2.7942148,137.1,137.05,2.7942148]
[1764093603324,3.24,137.12,137.05,2.7942148]
[1764093603325,2.7942148,137.12,137.08,25.53253574]
[1764093603528,2.7942148,137.1,137.08,25.53253574]
[1764093603732,2.7942148,137.1,137.09,0.71]
[1764093603928,2.7942148,137.11,137.09,0.71]
[1764093605318,2.7942148,137.13,137.1,7.29394602]
[1764093605820,3.5042148,137.13,137.1,8.00394602]
[1764093606623,2.7942148,137.12,137.1,8.00394602]
[1764093608059,2.7942148,137.14,137.11,0.71]
[1764093608355,2.7942148,137.13,137.11,0.71]
[1764093609659,0.71,137.14,137.12,7.29288214]
[1764093609865,3.95,137.15,137.12,7.29288214]
[1764093610043,0.71,137.14,137.12,7.29288214]
[1764093610368,7.29106257,137.2,137.13,6.2984296]
[1764093610531,2.7942148,137.19,137.15,2.7942148]
[1764093610734,3.5042148,137.2,137.15,2.7942148]
[1764093610931,3.5042148,137.2,137.16,0.71]
[1764093611166,3.5042148,137.19,137.16,0.71]
[1764093611744,3.5042148,137.19,137.15,7.29128691]
[1764093612058,2.7942148,137.17,137.14,7.29170931]
[1764093612254,2.7942148,137.16,137.13,24.31105545]
[1764093612451,2.7942148,137.16,137.13,8.00219145]
[1764093612964,3.5042148,137.16,137.13,8.00219145]
[1764093613132,3.5042148,137.15,137.13,7.29219145]
[1764093613851,2.7942148,137.16,137.13,7.29219145]
[1764093614032,3.5042148,137.16,137.13,7.29219145]
[1764093614227,0.71,137.16,137.13,8.00219145]
[1764093614585,10.53007642,137.18,137.14,0.71]
[1764093614586,6.0142148,137.18,137.14,0.71]
[1764093614726,3.5042148,137.18,137.14,0.71]
[1764093614932,16.308864,137.19,137.15,2.7942148]
[1764093615134,0.71,137.18,137.14,3.5042148]
[1764093615638,0.71,137.18,137.15,3.5042148]
[1764093615847,6.0142148,137.19,137.16,7.29075532]
[1764093616046,6.7242148,137.19,137.16,8.00075532]
[1764093616252,23.59717258,137.21,137.16,10.08497012]
[1764093616446,6.7242148,137.2,137.17,0.71]
[1764093616764,3.93,137.2,137.16,25.51764362]
[1764093616965,0.71,137.19,137.16,26.22764362]
[1764093617148,3.5042148,137.19,137.16,26.22764362]
[1764093617749,3.22,137.2,137.17,0.71]
[1764093617750,6.0142148,137.2,137.17,0.71]
[1764093617945,0.71,137.2,137.18,7.28969237]
[1764093618166,3.5042148,137.19,137.17,7.29000603]
[1764093618678,0.71,137.19,137.17,7.29000603]
[1764093618981,2.7942148,137.19,137.17,8.00000603]
[1764093619174,3.5042148,137.19,137.17,7.29000603]
[1764093619377,3.5042148,137.18,137.16,7.29062901]
[1764093619596,0.71,137.18,137.16,7.29062901]
[1764093620253,2.7942148,137.19,137.16,26.22751731]
[1764093620451,0.71,137.19,137.16,26.22751731]
[1764093620875,3.5042148,137.19,137.16,26.22751731]
[1764093621572,2.7942148,137.18,137.16,26.22751731]
[1764093622068,3.5042148,137.18,137.16,25.51751731]
[1764093622274,2.7942148,137.18,137.16,26.22751731]
[1764093622470,3.5042148,137.19,137.16,26.22751731]
[1764093623963,44.0469809,137.24,137.18,2.7942148]
[1764093624168,2.7942148,137.23,137.19,2.7942148]
[1764093624355,2.7942148,137.2,137.17,0.7]
[1764093624777,2.7942148,137.19,137.17,0.7]
[1764093625290,3.5042148,137.19,137.16,28.73751731]
[1764093625585,2.7942148,137.18,137.16,26.21751731]
[1764093625885,0.71,137.18,137.16,7.29062901]
[1764093626061,2.7942148,137.17,137.16,7.29062901]
[1764093626268,2.7942148,137.17,137.15,7.29109684]
[1764093626269,3.5042148,137.17,137.15,7.29109684]
[1764093626581,2.7942148,137.17,137.15,7.99109684]
[1764093626773,0.71,137.19,137.16,0.7]
[1764093626973,3.5042148,137.2,137.16,0.7]
[1764093627180,3.5042148,137.23,137.18,2.7942148]
[1764093627379,2.7942148,137.24,137.19,3.4942148]
[1764093627561,3.5042148,137.23,137.19,0.7]
[1764093627762,3.5042148,137.23,137.2,0.7]
[1764093627965,3.5042148,137.23,137.21,7.28809853]
[1764093628483,3.5042148,137.22,137.21,7.28809853]
[1764093629057,3.5042148,137.22,137.18,37.75231303]
[1764093629257,10.5063056,137.25,137.18,34.53231303]
[1764093629258,3.5042148,137.21,137.18,34.53231303]
[1764093629760,2.7942148,137.19,137.16,21.44606027]
[1764093629977,2.7942148,137.17,137.16,7.29070256]
[1764093630169,3.5042148,137.18,137.16,7.29070256]
[1764093630587,0.71,137.21,137.17,0.7]
[1764093630786,6.7242148,137.2,137.17,0.7]
[1764093631589,6.7242148,137.2,137.16,26.21759086]
[1764093631796,3.22,137.2,137.17,0.7]
[1764093632098,3.5042148,137.2,137.18,7.28969237]
[1764093632601,3.5042148,137.19,137.15,0.7]
[1764093632764,2.7942148,137.17,137.15,7.29128691]
[1764093633097,2.7942148,137.16,137.15,7.29128691]
[1764093633908,3.5042148,137.16,137.14,18.22908869]
[1764093634187,3.5042148,137.15,137.13,7.29235032]
[1764093634485,2.7942148,137.17,137.14,0.7]
[1764093634689,6.7242148,137.2,137.15,2.7942148]
[1764093634992,0.71,137.2,137.15,2.7942148]
[1764093635291,2.7942148,137.2,137.16,0.7]
[1764093635493,0.71,137.2,137.16,0.7]
[1764093635790,2.7942148,137.19,137.16,0.7]
[1764093636092,2.7942148,137.21,137.17,7.2902238]
[1764093636264,2.7942148,137.21,137.17,25.51578332]
[1764093636464,3.5042148,137.21,137.18,0.7]
[1764093636667,5.06856337,137.21,137.18,0.7]
[1764093636890,4.35856337,137.22,137.18,0.7]
[1764093637066,5.06856337,137.22,137.18,0.7]
[1764093637266,4.35856337,137.19,137.17,25.51578332]
[1764093637466,4.35856337,137.18,137.17,25.51578332]
[1764093638188,5.06856337,137.2,137.17,26.21578332]
[1764093638600,0.71,137.2,137.17,26.21578332]
[1764093638770,11.56437324,137.2,137.17,26.21578332]
[1764093639197,12.27437324,137.2,137.17,26.21578332]
[1764093639510,12.27437324,137.19,137.17,7.2902238]
[1764093640170,12.27437324,137.19,137.16,7.29075532]
[1764093640369,12.27437324,137.19,137.16,7.99075532]
[1764093640584,12.27437324,137.19,137.16,26.21764362]
[1764093640800,12.27437324,137.22,137.17,12.26437324]
[1764093641095,11.56437324,137.21,137.17,0.7]
[1764093641302,11.56437324,137.21,137.18,0.7]
[1764093641881,12.27437324,137.22,137.18,0.7]
[1764093642412,12.27437324,137.21,137.19,7.28916101]
[1764093642779,11.56437324,137.2,137.19,7.28916101]
[1764093643398,12.27437324,137.2,137.18,7.28950843]
[1764093644182,0.71,137.2,137.18,7.28950843]
[1764093644378,0.71,137.22,137.18,7.98950843]
[1764093644575,11.56437324,137.2,137.18,7.98950843]
[1764093644777,11.56437324,137.21,137.18,26.21373936]
[1764093645398,12.27437324,137.21,137.18,26.21373936]
[1764093645771,11.56437324,137.21,137.18,26.21373936]
[1764093647979,0.71,137.22,137.18,26.21373936]
[1764093648199,11.56437324,137.21,137.18,26.21373936]
[1764093648501,11.56437324,137.19,137.15,0.7]
[1764093648703,11.56437324,137.17,137.16,7.29050682]
[1764093649177,11.56437324,137.18,137.16,7.29050682]
[1764093649378,11.56437324,137.18,137.16,7.99050682]
[1764093649691,12.27437324,137.19,137.16,26.21739512]
[1764093649885,3.22,137.21,137.17,12.26437324]
[1764093650089,15.49437324,137.22,137.17,12.26437324]
[1764093650310,14.78437324,137.22,137.18,0.7]
[1764093650605,0.71,137.21,137.19,7.28916101]
[1764093650901,12.27437324,137.21,137.19,7.28916101]
[1764093651595,12.27437324,137.2,137.18,7.28948631]
[1764093651791,11.56437324,137.2,137.18,7.28948631]
[1764093651996,12.27437324,137.21,137.18,26.21371724]
[1764093652388,16.308864,137.23,137.19,0.7]
[1764093652577,28.58323724,137.23,137.19,0.7]
[1764093652887,34.7217669,137.27,137.2,7.28862973]
[1764093652888,0.71,137.25,137.2,7.28862973]
[1764093653092,14.78437324,137.24,137.2,25.51020407]
[1764093653303,16.308864,137.26,137.21,12.28437324]
[1764093653479,11.56437324,137.25,137.21,0.72]
[1764093653674,11.56437324,137.25,137.22,0.72]
[1764093654882,11.56437324,137.25,137.23,7.28703636]
[1764093655111,12.23437324,137.26,137.23,8.00703636]
[1764093656302,0.67,137.26,137.23,8.00703636]
[1764093656602,12.23437324,137.26,137.23,8.00703636]
[1764093656790,12.23437324,137.26,137.23,26.22462726]
[1764093657098,11.56437324,137.25,137.23,26.22462726]
[1764093657481,11.06437324,137.25,137.23,26.22462726]
[1764093658605,4.35539631,137.25,137.23,26.22462726]
[1764093659496,5.04539631,137.24,137.22,7.2875674]
[1764093659702,4.35539631,137.23,137.22,7.2875674]
[1764093660293,4.35539631,137.24,137.22,26.18648592]
[1764093661101,4.35539631,137.24,137.22,25.50648592]
[1764093661688,5.04539631,137.23,137.22,7.2875674]
[1764093661905,4.35539631,137.23,137.22,7.2875674]
[1764093663310,4.35539631,137.23,137.2,26.18960578]
[1764093663605,5.04539631,137.24,137.21,0.68]
[1764093664215,5.04539631,137.24,137.2,26.18960578]
[1764093664216,4.35539631,137.23,137.2,26.18960578]
[1764093664387,4.35539631,137.23,137.21,0.68]
[1764093664586,5.04539631,137.23,137.2,26.18960578]
[1764093664879,0.69,137.26,137.21,0.68]
[1764093665098,3.22,137.25,137.21,5.03539631]
[1764093665279,3.22,137.25,137.22,0.68]
[1764093665482,3.22,137.25,137.23,7.28703636]
[1764093665990,7.57539631,137.26,137.23,26.18462726]
[1764093666188,0.2,137.27,137.24,5.03539631]
[1764093666388,0.2,137.27,137.25,0.68]
[1764093666587,0.2,137.27,137.25,5.03539631]
[1764093666990,0.2,137.27,137.26,5.03539631]
[1764093667187,1e-08,137.27,137.26,13.84534123]
[1764093667398,1e-08,137.28,137.27,16.77485786]
[1764093667610,0.69,137.32,137.27,16.77485786]
[1764093667914,5.24539631,137.33,137.28,8.25539631]
[1764093668096,0.2,137.33,137.31,4.35539631]
[1764093668507,0.2,137.33,137.32,0.68]
[1764093669016,0.2,137.34,137.32,5.03539631]
[1764093669320,0.2,137.4,137.33,29.47420523]
[1764093669619,0.2,137.4,137.39,11.63394642]
[1764093670096,0.2,137.4,137.39,12.31394642]
[1764093670293,0.2,137.4,137.39,7.95855011]
[1764093670811,0.2,137.4,137.39,19.48511723]
[1764093671313,0.2,137.4,137.39,7.95855011]
[1764093671807,12.41656712,137.45,137.39,26.15492539]
[1764093672109,12.21656712,137.44,137.39,37.68149251]
[1764093672294,11.52656712,137.43,137.39,26.15492539]
[1764093672498,0.69,137.43,137.4,0.68]
[1764093672698,0.69,137.43,137.4,12.20656712]
[1764093673012,0.69,137.44,137.4,12.20656712]
[1764093673216,11.52656712,137.42,137.39,25.47492539]
[1764093673609,12.21656712,137.42,137.39,25.47492539]
[1764093674010,0.69,137.42,137.39,25.47492539]
[1764093674405,11.52656712,137.43,137.39,26.15492539]
[1764093674624,12.21656712,137.43,137.39,25.47492539]
[1764093674818,0.69,137.42,137.39,25.47492539]
[1764093675021,11.52656712,137.41,137.39,7.27855011]
[1764093675401,0.69,137.42,137.39,25.47492539]
[1764093676895,12.21656712,137.42,137.39,25.47492539]
[1764093677102,11.52656712,137.41,137.39,7.27855011]
[1764093677313,12.21656712,137.41,137.39,7.27855011]
[1764093677619,11.52656712,137.41,137.39,7.27855011]
[1764093677826,12.21656712,137.41,137.39,7.27855011]
[1764093678302,0.69,137.41,137.39,7.27855011]
[1764093680508,11.52656712,137.42,137.39,25.47492539]
[1764093680823,12.21656712,137.41,137.39,7.27855011]
[1764093681121,11.52656712,137.4,137.38,7.27891352]
[1764093681422,11.52656712,137.4,137.33,36.4082367]
[1764093681423,11.52656712,137.39,137.34,3.22]
[1764093681594,11.52656712,137.38,137.34,15.42656712]
[1764093681928,12.21656712,137.38,137.34,3.9]
[1764093682220,12.21656712,137.38,137.34,3.22]
[1764093682523,12.21656712,137.38,137.35,18.20167455]
[1764093683425,12.21656712,137.38,137.35,25.48234437]
[1764093684340,11.52656712,137.36,137.32,7.28226041]
[1764093684507,11.52656712,137.35,137.32,25.4871222]
[1764093684906,12.24656712,137.35,137.32,25.4871222]
[1764093686109,0.72,137.35,137.32,25.4871222]
[1764093686310,12.24656712,137.35,137.32,26.1671222]
[1764093686506,12.24656712,137.35,137.32,7.28226041]
[1764093686724,11.52656712,137.33,137.32,7.28226041]
[1764093687125,12.24656712,137.33,137.32,7.28226041]
[1764093687835,12.24656712,137.33,137.3,18.20780852]
[1764093688016,12.24656712,137.33,137.3,18.88780852]
[1764093688834,11.52656712,137.32,137.3,26.17112971]
[1764093689133,12.24656712,137.33,137.3,26.17112971]
[1764093689430,11.52656712,137.33,137.3,26.17112971]
[1764093689646,12.24656712,137.33,137.3,26.17112971]
[1764093690340,0.72,137.33,137.3,26.17112971]
[1764093690642,4.35019463,137.33,137.31,0.68]
[1764093691135,4.12446163,137.33,137.32,7.28226041]
[1764093691935,4.35019463,137.33,137.32,7.28226041]
[1764093692831,0.72,137.33,137.32,7.28226041]
[1764093693036,4.35019463,137.35,137.32,26.16791144]
[1764093693218,4.35019463,137.35,137.32,87.96791144]
[1764093693219,5.07019463,137.35,137.32,87.96791144]
[1764093694235,4.35019463,137.34,137.32,87.28791144]
[1764093694428,4.35019463,137.34,137.32,87.96791144]
[1764093695031,5.07019463,137.35,137.32,87.96791144]
[1764093695642,4.35019463,137.34,137.32,87.96791144]
[1764093695939,4.12447763,137.34,137.32,87.96791144]
[1764093696537,4.35019463,137.35,137.32,87.96791144]
[1764093696942,4.35019463,137.35,137.34,7.28119994]
[1764093697234,0.72,137.34,137.33,7.28151396]
[1764093697414,5.07019463,137.34,137.33,7.28151396]
[1764093698541,3.50416026,137.34,137.33,7.28151396]
[1764093698915,16.308864,137.38,137.33,26.1658393]
[1764093699143,2.78416026,137.38,137.34,0.68]
[1764093699851,2.78416026,137.38,137.34,3.46416026]
[1764093700018,2.78416026,137.38,137.35,0.68]
[1764093700437,2.78416026,137.38,137.36,7.28013977]
[1764093701644,0.72,137.39,137.36,7.28013977]
[1764093701821,3.50416026,137.38,137.36,7.28013977]
[1764093702020,2.78416026,137.37,137.36,7.28013977]
[1764093704149,20.248864,137.41,137.36,26.16048921]
[1764093704324,2.78416026,137.4,137.37,0.68]
[1764093704650,2.78416026,137.41,137.37,0.68]
[1764093704834,2.78416026,137.42,137.38,25.47677973]
[1764093705240,3.50416026,137.42,137.39,0.68]
[1764093705423,2.78416026,137.42,137.39,0.68]
[1764093705625,2.78416026,137.43,137.39,0.68]
[1764093705841,3.50416026,137.42,137.39,0.68]
[1764093706950,3.50416026,137.42,137.4,7.27802037]
[1764093707925,2.78416026,137.42,137.4,7.95802037]
[1764093708128,2.78416026,137.43,137.4,7.95802037]
[1764093708438,2.78416026,137.43,137.4,26.15307131]
[1764093708643,3.50416026,137.43,137.4,26.15307131]
[1764093709152,2.78416026,137.44,137.41,0.68]
[1764093709351,20.01302426,137.45,137.41,0.68]
[1764093709544,0.2,137.45,137.42,2.78416026]
[1764093709855,0.2,137.45,137.41,3.46416026]
[1764093710228,2.78416026,137.42,137.4,25.47307131]
[1764093710563,2.78416026,137.41,137.4,25.47307131]
[1764093710860,2.78416026,137.42,137.4,26.15307131]
[1764093712556,2.78416026,137.43,137.4,26.15307131]
[1764093712741,2.78416026,137.43,137.41,0.68]
[1764093713152,3.50416026,137.44,137.41,0.68]
[1764093713653,2.78416026,137.43,137.4,26.16307131]
[1764093714354,2.78416026,137.43,137.4,25.47307131]
[1764093714664,3.50416026,137.43,137.4,26.16307131]
[1764093715559,0.2,137.45,137.4,25.47307131]
[1764093715560,3.50416026,137.42,137.4,25.47307131]
[1764093715742,2.78416026,137.42,137.4,26.16307131]
[1764093716144,2.78416026,137.43,137.4,26.16307131]
[1764093716859,2.78416026,137.44,137.41,0.69]
[1764093717233,2.98416026,137.45,137.41,0.69]
[1764093717435,3.70416026,137.45,137.41,0.69]
[1764093717647,2.78416026,137.44,137.41,0.69]
[1764093717929,3.50416026,137.44,137.4,28.69307131]
[1764093718134,3.50416026,137.43,137.4,29.38307131]
[1764093718637,2.78416026,137.43,137.41,0.69]
[1764093719758,2.78416026,137.43,137.42,7.27696114]
[1764093720632,2.78416026,137.43,137.4,21.41505094]
[1764093720633,3.47416026,137.43,137.38,18.8574615]
[1764093720838,2.78416026,137.42,137.38,18.8574615]
[1764093721050,2.78416026,137.39,137.35,7.28066982]
[1764093721247,0.69,137.42,137.31,37.07394338]
[1764093721248,2.78416026,137.36,137.31,37.07394338]
[1764093721471,2.78416026,137.34,137.32,7.28226041]
[1764093721653,2.78416026,137.33,137.26,26.15905288]
[1764093721854,2.78416026,137.32,137.27,2.78416026]
[1764093722053,2.78416026,137.32,137.28,2.78416026]
[1764093722255,2.78416026,137.34,137.3,2.78416026]
[1764093722564,2.78416026,137.33,137.31,0.66]
[1764093722739,3.47416026,137.34,137.31,0.66]
[1764093722942,2.78416026,137.35,137.31,3.44416026]
[1764093723142,2.78416026,137.36,137.32,0.66]
[1764093723342,2.78416026,137.35,137.32,0.66]
[1764093723839,2.78416026,137.35,137.33,7.28173013]
[1764093724156,3.47416026,137.34,137.29,18.208958]
[1764093724358,2.78416026,137.32,137.28,0.66]
[1764093724558,2.78416026,137.3,137.25,3.80679524]
[1764093724875,2.78416026,137.27,137.24,7.28611565]
[1764093725044,16.308864,137.31,137.24,7.28611565]
[1764093725241,16.308864,137.31,137.25,0.66]
[1764093725556,2.78416026,137.29,137.25,3.44416026]
[1764093725950,2.78416026,137.29,137.26,26.15905288]
[1764093726151,3.47416026,137.29,137.26,7.28544368]
[1764093726652,6.63342285,137.27,137.21,0.66]
[1764093726855,6.63342285,137.23,137.2,0.1]
[1764093727042,6.63342285,137.21,137.2,0.1]
[1764093727559,7.32342285,137.21,137.2,0.1]
[1764093727750,7.32342285,137.21,137.2,7.38862973]
[1764093727953,6.63342285,137.21,137.2,0.1]
[1764093728150,7.32342285,137.21,137.2,0.1]
[1764093728351,6.63342285,137.21,137.2,0.1]
[1764093728569,13.9568457,137.21,137.18,0.1]
[1764093728795,6.63342285,137.19,137.18,0.1]
[1764093729172,0.69,137.19,137.18,0.1]
[1764093729373,7.32342285,137.19,137.18,0.1]
[1764093729590,0.69,137.19,137.18,0.1]
[1764093729790,6.63342285,137.2,137.18,0.1]
[1764093729992,0.69,137.22,137.18,0.76]
[1764093730191,7.32342285,137.22,137.18,0.76]
[1764093730396,6.63342285,137.22,137.18,0.76]
[1764093730694,6.63342285,137.22,137.18,7.39342285]
[1764093730896,0.69,137.24,137.19,6.63342285]
[1764093731075,7.32342285,137.24,137.19,7.29342285]
[1764093731278,6.63342285,137.23,137.2,0.66]
[1764093731594,6.63342285,137.23,137.18,7.39342285]
[1764093731778,6.63342285,137.22,137.19,0.66]
[1764093732091,6.63342285,137.22,137.2,7.28862973]
[1764093732491,6.63342285,137.22,137.19,7.94904001]
[1764093732693,6.63342285,137.21,137.19,7.28904001]
[1764093733771,6.63342285,137.22,137.2,0.66]
[1764093734187,16.308864,137.25,137.2,0.66]
[1764093734394,6.63342285,137.22,137.18,26.2739233]
[1764093734593,6.63342285,137.23,137.19,0.66]
[1764093734976,6.63342285,137.24,137.19,7.29342285]
[1764093735285,7.28476196,137.28,137.2,6.63342285]
[1764093735577,6.63342285,137.25,137.2,7.29342285]
[1764093735777,6.63342285,137.25,137.21,7.94809853]
[1764093736198,6.63342285,137.25,137.22,0.66]
[1764093736572,3.93,137.28,137.22,0.66]
[1764093736774,6.63342285,137.26,137.22,0.66]
[1764093736996,6.63342285,137.25,137.22,0.66]
[1764093738104,6.63342285,137.25,137.23,7.28703636]
[1764093738308,6.63342285,137.26,137.23,7.28703636]
[1764093738475,6.63342285,137.26,137.23,7.94703636]
[1764093738671,6.63342285,137.26,137.23,25.50462726]
[1764093739005,0.69,137.3,137.24,0.66]
[1764093739296,3.24,137.32,137.25,6.63342285]
[1764093739504,3.93,137.32,137.26,10.53342285]
[1764093739692,6.63342285,137.33,137.28,6.63342285]
[1764093740074,6.63342285,137.32,137.29,7.9438517]
[1764093740279,6.63342285,137.32,137.29,26.15348095]
[1764093740593,6.63342285,137.35,137.3,7.29342285]
[1764093740995,6.63342285,137.35,137.31,0.66]
[1764093741196,7.32342285,137.35,137.31,0.66]
[1764093741577,6.63342285,137.35,137.31,7.29342285]
[1764093741979,6.63342285,137.33,137.32,7.28226041]
[1764093742199,6.63342285,137.33,137.3,7.28332119]
[1764093742510,6.63342285,137.32,137.3,25.49162417]
[1764093742679,7.32342285,137.33,137.3,25.49162417]
[1764093743005,6.63342285,137.33,137.3,26.15162417]
[1764093744406,6.63342285,137.34,137.3,32.79504702]
[1764093744595,6.63342285,137.34,137.3,26.16162417]
[1764093744796,7.31342285,137.34,137.3,26.16162417]
[1764093745408,6.63342285,137.32,137.3,7.28332119]
[1764093745894,7.31342285,137.32,137.3,7.28332119]
[1764093746090,7.31342285,137.32,137.28,69.10342285]
[1764093746327,6.63342285,137.3,137.28,25.4953173]
[1764093746488,6.63342285,137.32,137.28,25.4953173]
[1764093746693,6.63342285,137.32,137.28,26.1653173]
[1764093747003,7.31342285,137.32,137.28,26.1653173]
[1764093747202,6.63342285,137.31,137.28,26.1653173]
[1764093747998,6.63342285,137.31,137.28,25.4953173]
[1764093748201,10.5212132,137.34,137.28,7.28436159]
[1764093748202,7.31342285,137.3,137.28,7.28436159]
[1764093748802,7.31342285,137.29,137.27,61.8]
[1764093749008,6.63342285,137.28,137.26,7.28544368]
[1764093749208,6.63342285,137.29,137.26,7.95544368]
[1764093749397,7.28180444,137.33,137.26,25.49905288]
[1764093749716,7.28180444,137.33,137.27,0.67]
[1764093749717,6.63342285,137.31,137.27,0.67]
[1764093750222,6.63342285,137.31,137.28,25.49533799]
[1764093750423,6.63342285,137.31,137.28,87.29533799]
[1764093750605,3.92,137.33,137.28,87.96533799]
[1764093750802,6.63342285,137.33,137.29,3.91]
[1764093751119,6.63342285,137.33,137.3,0.67]
[1764093751520,6.63342285,137.33,137.28,25.49533799]
[1764093751818,6.63342285,137.32,137.29,0.67]
[1764093752198,7.31342285,137.32,137.29,0.67]
[1764093752529,6.63342285,137.31,137.3,7.28332119]
[1764093753099,7.31342285,137.31,137.26,18.21331728]
[1764093753299,6.63342285,137.27,137.24,0.67]
[1764093753505,6.63342285,137.26,137.25,7.28597449]
[1764093753905,6.63342285,137.26,137.24,7.28633611]
[1764093754095,6.63342285,137.26,137.24,7.95633611]
[1764093754519,7.28288272,137.31,137.24,7.28633611]
[1764093754704,6.63342285,137.27,137.25,0.67]
[1764093754907,0.68,137.31,137.26,6.63342285]
[1764093755107,6.63342285,137.3,137.26,9.87342285]
[1764093755305,6.63342285,137.29,137.26,3.24]
[1764093755820,6.63342285,137.29,137.26,3.91]
[1764093756505,23.59088578,137.33,137.27,7.28491294]
[1764093756825,0.68,137.29,137.27,7.28491294]
[1764093757030,6.63342285,137.29,137.27,7.28491294]
[1764093757240,7.31342285,137.29,137.27,7.28491294]
[1764093757639,7.31342285,137.28,137.25,7.28556247]
[1764093757934,6.63342285,137.26,137.25,7.28556247]
[1764093758513,6.63342285,137.26,137.24,7.28650539]
[1764093758717,6.63342285,137.27,137.24,26.17276887]
[1764093759051,0.68,137.3,137.24,25.50276887]
[1764093759341,6.63342285,137.27,137.24,26.17276887]
[1764093759514,6.63342285,137.29,137.25,0.67]
[1764093759723,6.63342285,137.3,137.25,10.54342285]
[1764093760040,6.63342285,137.3,137.26,6.63342285]
[1764093760244,6.63342285,137.31,137.27,16.308864]
[1764093760425,6.63342285,137.31,137.27,16.978864]
[1764093760631,11.54621526,137.3,137.28,7.95438228]
[1764093761628,11.54621526,137.33,137.29,0.67]
[1764093762264,11.54621526,137.31,137.28,25.49533799]
[1764093762541,11.54621526,137.3,137.28,25.49533799]
[1764093763442,11.54621526,137.29,137.27,7.28470553]
[1764093763640,11.54621526,137.28,137.27,7.28470553]
[1764093763836,11.54621526,137.28,137.25,3.91]
[1764093763837,12.22621526,137.28,137.25,7.28597449]
[1764093764038,11.54621526,137.26,137.25,7.28597449]
[1764093764215,11.54621526,137.27,137.25,25.50091073]
[1764093764416,11.54621526,137.27,137.25,26.17091073]
[1764093765034,11.54621526,137.27,137.25,25.50091073]
[1764093765243,0.68,137.29,137.25,25.50091073]
[1764093765438,11.54621526,137.27,137.25,25.50091073]
[1764093766311,11.54621526,137.27,137.25,26.17091073]
[1764093766733,18.2035036,137.34,137.26,3.91]
[1764093766912,11.54621526,137.3,137.26,3.91]
[1764093767115,11.54621526,137.3,137.27,0.67]
[1764093767517,16.308864,137.33,137.27,0.67]
[1764093767752,11.54621526,137.31,137.27,62.47]
[1764093767953,11.54621526,137.3,137.27,62.47]
[1764093768131,11.54621526,137.3,137.29,7.2838517]
[1764093768515,11.54621526,137.3,137.29,7.9538517]
[1764093769421,11.54621526,137.3,137.29,7.2838517]
[1764093770060,11.54621526,137.3,137.28,7.2843292]
[1764093770220,11.54621526,137.29,137.28,7.2843292]
[1764093771756,11.54621526,137.3,137.28,7.2843292]
[1764093772436,11.54621526,137.29,137.28,7.2843292]
[1764093773321,12.22621526,137.3,137.27,7.28491294]
[1764093773525,12.22621526,137.3,137.27,25.4971953]
[1764093773725,3.24,137.33,137.27,25.4971953]
[1764093773931,11.54621526,137.31,137.28,0.68]
[1764093774145,3.92,137.33,137.28,0.68]
[1764093774343,12.22621526,137.32,137.28,62.48]
[1764093775148,11.54621526,137.31,137.28,62.48]
[1764093776348,3.92,137.33,137.29,7.9638517]
[1764093776538,11.54621526,137.31,137.29,7.2838517]
[1764093776946,11.54621526,137.31,137.29,25.49348095]
[1764093777353,11.54621526,137.31,137.29,26.17348095]
[1764093777729,11.54621526,137.32,137.29,26.17348095]
[1764093778042,11.54621526,137.32,137.29,25.49348095]
[1764093778246,11.54621526,137.33,137.3,0.68]
[1764093778439,11.54621526,137.34,137.31,7.28279076]
[1764093778755,12.22621526,137.34,137.31,7.28279076]
[1764093779051,16.308864,137.35,137.31,7.28279076]
[1764093779052,12.22621526,137.33,137.31,7.28279076]
[1764093779358,11.54621526,137.33,137.31,7.28279076]